[Event "Fagernes Open 2021"]
[Site "Fagernes"]
[Date "2021.10.17"]
[Round "9.6"]
[White "Skigelstrand, Live Jorgensen"]
[Black "Unhjem, Bjorn Robert Lovoll"]
[Result "0-1"]
[ECO "B52"]
[WhiteElo "1649"]
[BlackElo "1924"]
[Annotator "NA"]
[PlyCount "80"]
[EventDate "2021.10.10"]
[EventCountry "NOR"]
[SourceTitle "playchess.com"]
[Source "ChessBase"]
[SourceQuality "1"]
[TimeControl "40/5400+30:1800+30"]

1. e4 {[%emt 0:00:00]} c5 {[%emt 0:20:29]} 2. Nf3 {[%emt 0:00:00]} d6 {[%emt 0:00:07]} 3. Bb5+ {[%emt 0:00:00]} Bd7 {[%emt 0:00:16]} 4. Bxd7+ {[%emt 0:00:00]} Qxd7 {[%emt 0:00:06]} 5. c4 {[%emt 0:00:00]} Nc6 {[%emt 0:00:18]} 6. Nc3 {[%emt 0:00:00]} g6 {[%emt 0:03:55]} 7. d4 {[%emt 0:00:00]} cxd4 {[%emt 0:00:11]} 8. Nxd4 {[%emt 0:00:00]} Bg7 {[%emt 0:00:13]} 9. Be3 {[%emt 0:00:00]} Nf6 {[%emt 0:00:29]} 10. f3 {[%emt 0:00:00]} O-O {[%emt 0:01:25]} 11. O-O {[%emt 0:00:00]} a6 {[%emt 0:01:53]} 12. Qd3 {[%emt 0:00:00]} Ne5 {[%emt 0:05:03]} 13. Qe2 {[%emt 0:00:00]} Rac8 {[%emt 0:00:45]} 14. b3 {[%emt 0:00:00]} b5 {[%emt 0:02:38]} 15. Nd5 $1 {[%emt 0:00:00]} Nxd5 {[%emt 0:01:36]} 16. cxd5 {[%emt 0:00:00]} Rc3 $14 {[%emt 0:01:41]} 17. Rad1 {[%emt 0:26:01]} e6 {[%emt 0:06:50]} 18. h3 {[%emt 0:25:05]} exd5 {[%emt 0:00:24]} 19. f4 {[%emt 0:02:39]} Nc6 {[%emt 0:02:13]} 20. Nxc6 {[%emt 0:00:41]} Qxc6 {[%emt 0:01:48]} 21. exd5 {[%emt 0:00:02]} Qc8 {[%emt 0:03:10]} 22. Rc1 {[%emt 0:07:55]} Re8 {[%emt 0:07:22]} 23. Qd2 {[%emt 0:00:02]} b4 {[%emt 0:02:33]} 24. Kf2 {[%emt 0:04:35]} Qf5 {[%emt 0:01:50]} 25. Rfe1 {[%emt 0:02:06]} Rd3 {[%emt 0:01:13]} 26. Qxb4 {[%emt 0:00:43]} Qxd5 {[%emt 0:02:23]} 27. Qa4 {[%emt 0:01:59]} Kf8 {[%emt 0:10:36]} 28. Qc4 {[%emt 0:04:26]} Qxc4 {[%emt 0:03:54]} 29. Rxc4 {[%emt 0:00:39]} Bf6 {[%emt 0:04:50]} 30. g3 {[%emt 0:05:00]} Kg7 {[%emt 0:00:53]} 31. Rc2 {[%emt 0:00:37]} d5 {[%emt 0:01:13]} 32. Rd2 {[%emt 0:00:15]} Rexe3 {[%emt 0:00:29]} 33. Red1 {[%emt 0:02:06]} Rf3+ {[%emt 0:00:27]} 34. Kg2 {[%emt 0:00:27]} Rxg3+ {[%emt 0:00:12]} 35. Kf2 {[%emt 0:00:07]} Bd4+ {[%emt 0:00:37]} 36. Ke2 {[%emt 0:00:25]} Rde3+ {[%emt 0:00:12]} 37. Kf2 {[%emt 0:00:16]} Ref3+ {[%emt 0:00:07]} 38. Ke1 {[%emt 0:00:16]} Bc3 {[%emt 0:00:59]} 39. Ke2 {[%emt 0:00:25]} Bxd2 {[%emt 0:00:16]} 40. Kxd2 {[%emt 0:00:03]} Rd3+ {[%emt 0:00:31]} 0-1

[Event "Fagernes Open 2021"]
[Site "Fagernes"]
[Date "2021.10.17"]
[Round "9.7"]
[White "Edvardsen, Ragnar"]
[Black "Ostensen, Nicolai Maxime"]
[Result "1-0"]
[ECO "D04"]
[WhiteElo "1865"]
[BlackElo "1768"]
[Annotator "NA"]
[PlyCount "101"]
[EventDate "2021.10.10"]
[EventCountry "NOR"]
[SourceTitle "playchess.com"]
[Source "ChessBase"]
[SourceQuality "1"]
[TimeControl "40/5400+30:1800+30"]

1. d4 {[%emt 0:00:00]} Nf6 {[%emt 0:00:00]} 2. Nf3 {[%emt 0:00:00]} g6 {[%emt 0:00:00]} 3. e3 {[%emt 0:00:00]} Bg7 {[%emt 0:00:00]} 4. Bd3 {[%emt 0:00:00]} d5 {[%emt 0:00:00]} 5. O-O {[%emt 0:00:00]} O-O {[%emt 0:00:00]} 6. b3 {[%emt 0:00:00]} Nbd7 {[%emt 0:00:00]} 7. Bb2 {[%emt 0:00:00]} c5 {[%emt 0:00:00]} 8. c4 {[%emt 0:00:00]} b6 {[%emt 0:00:00]} 9. Nbd2 {[%emt 0:08:02]} Bb7 {[%emt 0:01:37]} 10. Ne5 {[%emt 0:01:15]} Nxe5 {[%emt 0:03:20]} 11. dxe5 {[%emt 0:00:12]} Nd7 {[%emt 0:00:33]} 12. f4 {[%emt 0:00:38]} e6 {[%emt 0:00:38]} 13. Nf3 {[%emt 0:01:13]} Qe7 {[%emt 0:02:09]} 14. Qe2 {[%emt 0:04:47]} Rfd8 {[%emt 0:01:46]} 15. Rad1 {[%emt 0:03:39]} a5 {[%emt 0:03:51]} 16. a4 {[%emt 0:06:38]} Rac8 $14 {[%emt 0:01:17]} 17. Ba3 {[%emt 0:04:22]} Qe8 {[%emt 0:08:19]} 18. cxd5 {[%emt 0:02:42]} Bxd5 {[%emt 0:00:39]} 19. Nd2 {[%emt 0:08:50]} Bf8 {[%emt 0:15:26]} 20. e4 {[%emt 0:08:23]} Bc6 {[%emt 0:02:14]} 21. Bc4 {[%emt 0:00:41]} Bh6 {[%emt 0:04:46]} 22. Bb2 {[%emt 0:01:09]} Nf8 {[%emt 0:02:41]} 23. f5 {[%emt 0:02:04]} Rxd2 {[%emt 0:07:44]} 24. Rxd2 {[%emt 0:00:18]} Bxd2 {[%emt 0:00:35]} 25. Qxd2 {[%emt 0:00:22]} Bxe4 {[%emt 0:00:54]} 26. f6 {[%emt 0:00:31]} Nd7 {[%emt 0:04:05]} 27. Bxe6 {[%emt 0:04:48]} Rd8 {[%emt 0:03:07]} 28. Qf4 {[%emt 0:03:30]} Bc6 {[%emt 0:03:03]} 29. Bc4 {[%emt 0:01:03]} Nf8 {[%emt 0:01:55]} 30. Qh6 {[%emt 0:00:37]} Ne6 {[%emt 0:00:06]} 31. Bxe6 {[%emt 0:00:18]} Qf8 {[%emt 0:00:05]} 32. Qxf8+ {[%emt 0:01:32]} Kxf8 {[%emt 0:00:01]} 33. Bc4 {[%emt 0:00:20]} Rd2 {[%emt 0:00:08]} 34. Rf2 {[%emt 0:00:26]} Rd1+ {[%emt 0:00:08]} 35. Bf1 {[%emt 0:00:15]} Bd5 {[%emt 0:00:04]} 36. Bc3 {[%emt 0:01:18]} Bxb3 {[%emt 0:00:24]} 37. Rd2 {[%emt 0:01:24]} Rxd2 {[%emt 0:00:04]} 38. Bxd2 {[%emt 0:00:19]} Bxa4 {[%emt 0:00:06]} 39. Bc4 {[%emt 0:02:25]} Bd7 {[%emt 0:00:32]} 40. Kf2 {[%emt 0:00:37]} b5 {[%emt 0:00:20]} 41. Ba2 {[%emt 0:30:59]} a4 {[%emt 0:31:03]} 42. Be3 {[%emt 0:00:36]} c4 {[%emt 0:00:06]} 43. Bc5+ {[%emt 0:00:24]} Ke8 {[%emt 0:00:04]} 44. Ke3 {[%emt 0:00:48]} Bc6 {[%emt 0:00:04]} 45. g3 {[%emt 0:00:58]} Kd7 {[%emt 0:00:08]} 46. Bb1 {[%emt 0:02:02]} Ke6 {[%emt 0:00:29]} 47. Be4 {[%emt 0:01:04]} Be8 {[%emt 0:00:33]} 48. Kd4 {[%emt 0:00:34]} h5 {[%emt 0:00:44]} 49. h3 {[%emt 0:00:24]} Kd7 {[%emt 0:00:41]} 50. Bd5 {[%emt 0:00:51]} Kc7 {[%emt 0:00:52]} 51. e6 {[%emt 0:00:43]} 1-0

[Event "Fagernes Open 2021"]
[Site "Fagernes"]
[Date "2021.10.17"]
[Round "9.8"]
[White "Stokhaug, Jon Arne"]
[Black "Kveim, Ingvar Torjesen"]
[Result "1/2-1/2"]
[ECO "B07"]
[WhiteElo "1861"]
[BlackElo "1466"]
[Annotator "NA"]
[PlyCount "77"]
[EventDate "2021.10.10"]
[EventCountry "NOR"]
[SourceTitle "playchess.com"]
[Source "ChessBase"]
[SourceQuality "1"]
[TimeControl "40/5400+30:1800+30"]

1. Nf3 {[%emt 0:00:00]} d6 {[%emt 0:00:00]} 2. d4 {[%emt 0:00:00]} g6 {[%emt 0:00:00]} 3. e4 {[%emt 0:00:00]} Nf6 {[%emt 0:00:00]} 4. Bd3 {[%emt 0:00:00]} Bg7 {[%emt 0:00:00]} 5. h3 {[%emt 0:00:00]} O-O {[%emt 0:00:00]} 6. O-O {[%emt 0:03:36]} c5 {[%emt 0:00:00]} 7. c3 {[%emt 0:00:00]} a6 {[%emt 0:00:00]} 8. a4 {[%emt 0:00:00]} Nc6 {[%emt 0:00:00]} 9. Be3 {[%emt 0:00:00]} cxd4 {[%emt 0:02:24]} 10. cxd4 {[%emt 0:00:21]} Nb4 {[%emt 0:00:48]} 11. Nc3 {[%emt 0:00:48]} Nxd3 {[%emt 0:00:35]} 12. Qxd3 {[%emt 0:00:14]} Bd7 {[%emt 0:03:46]} 13. Rfd1 {[%emt 0:01:39]} Rb8 {[%emt 0:02:19]} 14. b4 {[%emt 0:08:12]} b5 {[%emt 0:07:18] [#]} (14... d5 $11) 15. a5 {[%emt 0:00:22]} (15. axb5 $1 $16 Bxb5 16. Nxb5 Rxb5 17. Bd2 (17. Rxa6 Rxb4 18. Rc1 d5 $14)) 15... Qc7 {[%emt 0:03:59]} 16. Rac1 $14 {[%emt 0:01:52]} Qb7 $1 {[%emt 0:00:07]} 17. Bg5 {[%emt 0:10:18]} h6 {[%emt 0:02:04]} 18. Bf4 {[%emt 0:03:29]} Rbc8 {[%emt 0:00:49]} 19. d5 {[%emt 0:03:13]} Rc4 {[%emt 0:04:01]} 20. Rb1 {[%emt 0:03:23]} Rfc8 {[%emt 0:01:20]} 21. Rdc1 {[%emt 0:00:19]} Be8 {[%emt 0:08:37]} 22. Nd2 {[%emt 0:01:15]} R4c7 {[%emt 0:00:06]} 23. Ne2 {[%emt 0:05:32]} Nd7 {[%emt 0:01:41]} 24. Rxc7 {[%emt 0:04:11]} Rxc7 {[%emt 0:00:06]} 25. Rc1 {[%emt 0:01:41]} Rxc1+ {[%emt 0:00:41]} 26. Nxc1 {[%emt 0:00:01]} Ne5 {[%emt 0:00:20]} 27. Qc2 {[%emt 0:01:14]} Bd7 {[%emt 0:01:19]} 28. Be3 {[%emt 0:01:28]} f5 {[%emt 0:02:40]} 29. f3 {[%emt 0:05:39]} fxe4 {[%emt 0:01:25]} 30. fxe4 {[%emt 0:00:20]} e6 {[%emt 0:01:01]} 31. dxe6 {[%emt 0:08:16]} Bxe6 {[%emt 0:00:25]} 32. Ncb3 {[%emt 0:00:19]} Nc4 {[%emt 0:03:21]} 33. Bf4 {[%emt 0:03:37]} Qa7+ {[%emt 0:06:45]} 34. Kh2 {[%emt 0:05:47]} Be5 {[%emt 0:01:20]} 35. Bxe5 {[%emt 0:01:56]} Nxe5 {[%emt 0:00:11]} 36. Nf1 {[%emt 0:01:28]} Bxb3 {[%emt 0:12:58]} 37. Qxb3+ {[%emt 0:00:19]} Qf7 {[%emt 0:00:08]} 38. Qd1 {[%emt 0:08:40]} Nc4 {[%emt 0:10:15]} 39. Qd3 {[%emt 0:09:05]} 1/2-1/2

[Event "Fagernes Open 2021"]
[Site "Fagernes"]
[Date "2021.10.17"]
[Round "9.9"]
[White "Langvik, Ulrikke"]
[Black "Lye, Sigurd"]
[Result "0-1"]
[ECO "D40"]
[WhiteElo "1542"]
[BlackElo "1821"]
[Annotator "NA"]
[PlyCount "76"]
[EventDate "2021.10.10"]
[EventCountry "NOR"]
[SourceTitle "playchess.com"]
[Source "ChessBase"]
[SourceQuality "1"]
[TimeControl "40/5400+30:1800+30"]

1. d4 {[%emt 0:00:00]} Nf6 {[%emt 0:00:00]} 2. Nf3 {[%emt 0:00:00]} d5 {[%emt 0:00:00]} 3. e3 {[%emt 0:00:00]} c5 {[%emt 0:01:02]} 4. c4 {[%emt 0:00:00]} e6 {[%emt 0:00:00]} 5. Nc3 {[%emt 0:00:00]} Nc6 {[%emt 0:00:00]} 6. b3 {[%emt 0:02:29]} cxd4 {[%emt 0:00:00]} 7. Nxd4 {[%emt 0:05:20]} Bb4 {[%emt 0:00:00]} 8. Bd2 {[%emt 0:04:32]} Nxd4 {[%emt 0:08:29]} 9. exd4 {[%emt 0:00:03]} O-O {[%emt 0:00:23]} 10. a3 {[%emt 0:17:24]} Be7 $15 {[%emt 0:03:16]} 11. c5 {[%emt 0:01:33]} Ne4 {[%emt 0:16:40]} 12. Nxe4 {[%emt 0:04:15]} dxe4 {[%emt 0:00:06]} 13. Be3 {[%emt 0:00:31]} b6 {[%emt 0:11:14]} 14. Qc2 {[%emt 0:05:38]} f5 {[%emt 0:05:11]} 15. g3 {[%emt 0:12:42]} Bf6 {[%emt 0:04:45]} 16. Rd1 {[%emt 0:02:28]} bxc5 {[%emt 0:01:45]} 17. dxc5 {[%emt 0:12:22]} Qa5+ {[%emt 0:00:41]} 18. Bd2 {[%emt 0:01:18]} Qxa3 {[%emt 0:01:34]} 19. Bc4 {[%emt 0:01:11]} Kh8 {[%emt 0:07:16]} 20. c6 {[%emt 0:05:05]} Qc5 {[%emt 0:03:13]} 21. O-O {[%emt 0:10:34]} Qxc6 {[%emt 0:03:34]} 22. Qa2 {[%emt 0:00:50]} Bb7 {[%emt 0:02:12]} 23. Be3 {[%emt 0:00:13]} Rfd8 {[%emt 0:02:53]} 24. Rc1 {[%emt 0:00:01]} Bd4 {[%emt 0:02:41]} 25. b4 {[%emt 0:03:53]} Bxe3 {[%emt 0:01:14]} 26. fxe3 {[%emt 0:00:03]} Qb6 {[%emt 0:00:47]} 27. Rfe1 {[%emt 0:05:22]} Bd5 {[%emt 0:00:58]} 28. Kf2 {[%emt 0:01:11]} h6 {[%emt 0:02:17]} 29. Re2 {[%emt 0:01:03]} Qxb4 {[%emt 0:03:23]} 30. Rb2 {[%emt 0:00:42]} Bxc4 {[%emt 0:01:48]} 31. Rxc4 {[%emt 0:00:04]} Qe7 {[%emt 0:01:17]} 32. Rbc2 {[%emt 0:00:03]} Rd7 {[%emt 0:03:29]} 33. Rc6 {[%emt 0:01:20]} Rad8 {[%emt 0:01:35]} 34. Ke2 {[%emt 0:02:14]} Qg5 {[%emt 0:02:06]} 35. Kf2 {[%emt 0:03:03]} Qg4 {[%emt 0:00:27]} 36. Kg1 {[%emt 0:00:31]} Qf3 {[%emt 0:00:51]} 37. Rf2 {[%emt 0:00:27]} Rd1+ {[%emt 0:00:05]} 38. Rf1 {[%emt 0:00:05]} Rxf1# {[%emt 0:00:06]} 0-1

[Event "Fagernes Open 2021"]
[Site "Fagernes"]
[Date "2021.10.17"]
[Round "9.10"]
[White "Johannessen, Theo N"]
[Black "Fredriksen, Jan Gunnar"]
[Result "1/2-1/2"]
[ECO "D51"]
[WhiteElo "1668"]
[BlackElo "1835"]
[Annotator "NA"]
[PlyCount "80"]
[EventDate "2021.10.10"]
[EventCountry "NOR"]
[SourceTitle "playchess.com"]
[Source "ChessBase"]
[SourceQuality "1"]
[TimeControl "40/5400+30:1800+30"]

1. d4 {[%emt 0:14:12]} e6 {[%emt 0:05:39]} 2. Nf3 {[%emt 0:00:00]} Nf6 {[%emt 0:00:08]} 3. c4 {[%emt 0:00:00]} d5 {[%emt 0:00:30]} 4. Nc3 {[%emt 0:00:00]} c6 {[%emt 0:00:20]} 5. Bg5 {[%emt 0:00:00]} Be7 {[%emt 0:01:37]} 6. e3 {[%emt 0:00:00]} O-O {[%emt 0:00:07]} 7. a3 {[%emt 0:00:00]} Nbd7 {[%emt 0:02:56]} 8. Be2 {[%emt 0:00:00]} dxc4 {[%emt 0:00:32]} 9. Bxc4 {[%emt 0:00:00]} b5 {[%emt 0:00:04]} 10. Be2 {[%emt 0:00:00]} a6 {[%emt 0:03:35]} 11. O-O {[%emt 0:00:00]} Bb7 {[%emt 0:00:05]} 12. Qc2 {[%emt 0:00:00]} h6 {[%emt 0:00:44]} 13. Bh4 {[%emt 0:00:00]} Rc8 {[%emt 0:00:29]} (13... c5 $11) 14. Rfd1 {[%emt 0:00:00]} (14. b4 $14) 14... c5 {[%emt 0:01:36]} 15. dxc5 {[%emt 0:00:00]} Rxc5 {[%emt 0:03:16]} 16. b4 {[%emt 0:05:41]} Rc8 $11 {[%emt 0:02:21]} 17. Qb3 {[%emt 0:05:59]} Nd5 {[%emt 0:07:29]} 18. Bxe7 {[%emt 0:02:16]} Qxe7 {[%emt 0:01:08]} 19. Rac1 {[%emt 0:05:16]} N7f6 {[%emt 0:07:40]} 20. Nxd5 {[%emt 0:04:30]} Bxd5 {[%emt 0:00:46]} 21. Qb2 {[%emt 0:00:19]} Qb7 {[%emt 0:00:32]} 22. h3 {[%emt 0:03:12]} Rfd8 {[%emt 0:00:12]} 23. Rxc8 {[%emt 0:03:11]} Rxc8 {[%emt 0:00:08]} 24. Rc1 {[%emt 0:00:09]} Kf8 {[%emt 0:05:40]} 25. Rxc8+ {[%emt 0:03:30]} Qxc8 {[%emt 0:00:08]} 26. Ne5 {[%emt 0:02:49]} Qc7 {[%emt 0:04:51]} 27. Bf3 {[%emt 0:05:43]} Bxf3 {[%emt 0:02:38]} 28. Nxf3 {[%emt 0:01:32]} Nd5 {[%emt 0:00:44]} 29. Ne5 {[%emt 0:04:02]} Nc3 {[%emt 0:04:48]} 30. Nd7+ {[%emt 0:03:27]} Qxd7 {[%emt 0:01:30]} 31. Qxc3 {[%emt 0:00:06]} Qd1+ {[%emt 0:00:30]} 32. Kh2 {[%emt 0:00:16]} Qd6+ {[%emt 0:00:36]} 33. g3 {[%emt 0:05:00]} f6 {[%emt 0:00:34]} 34. Qc8+ {[%emt 0:02:56]} Kf7 {[%emt 0:00:12]} 35. Kg2 {[%emt 0:02:18]} f5 {[%emt 0:01:54]} 36. h4 {[%emt 0:01:55]} Kf6 {[%emt 0:03:58]} 37. h5 {[%emt 0:03:19]} Qd5+ {[%emt 0:02:15]} 38. Kg1 {[%emt 0:02:46]} Qd1+ {[%emt 0:01:25]} 39. Kg2 {[%emt 0:00:11]} Qd5+ {[%emt 0:02:16]} 40. Kg1 {[%emt 0:00:15]} Qd1+ {[%emt 0:00:08]} 1/2-1/2

[Event "Fagernes Open 2021"]
[Site "Fagernes"]
[Date "2021.10.17"]
[Round "9.11"]
[White "Erikstad, Olav Aage"]
[Black "Sekkingstad, Thomas"]
[Result "0-1"]
[ECO "B12"]
[WhiteElo "1761"]
[BlackElo "1812"]
[Annotator "NA"]
[PlyCount "94"]
[EventDate "2021.10.10"]
[EventCountry "NOR"]
[SourceTitle "playchess.com"]
[Source "ChessBase"]
[SourceQuality "1"]
[TimeControl "40/5400+30:1800+30"]

1. e4 {[%emt 0:00:00]} c6 {[%emt 0:00:00]} 2. d4 {[%emt 0:00:00]} d5 {[%emt 0:00:00]} 3. e5 {[%emt 0:00:00]} c5 {[%emt 0:00:00]} 4. c3 {[%emt 0:00:00]} Nc6 {[%emt 0:00:00]} 5. Nf3 {[%emt 0:00:00]} Bg4 {[%emt 0:00:00]} 6. Bb5 {[%emt 0:00:00]} e6 {[%emt 0:00:00]} 7. Qa4 {[%emt 0:00:00]} Qc7 {[%emt 0:00:00]} 8. Nbd2 {[%emt 0:00:00]} a6 {[%emt 0:00:00]} 9. dxc5 {[%emt 0:00:00]} Bxf3 {[%emt 0:00:00]} 10. Nxf3 {[%emt 0:00:00]} Bxc5 {[%emt 0:00:00]} 11. Nd4 {[%emt 0:01:50]} Nge7 {[%emt 0:00:00]} ({Much weaker is} 11... Qxe5+ $6 12. Be3 $14) 12. Be3 {[%emt 0:04:01]} Qb6 {[%emt 0:09:37]} 13. O-O {[%emt 0:10:27]} O-O {[%emt 0:00:48]} 14. Bxc6 {[%emt 0:04:01]} Nxc6 {[%emt 0:00:51]} 15. Nxc6 {[%emt 0:00:24]} bxc6 {[%emt 0:00:07]} 16. Bxc5 {[%emt 0:00:32]} Qxc5 {[%emt 0:00:08]} 17. Kh1 {[%emt 0:01:03]} Rfb8 {[%emt 0:01:28]} 18. Rab1 {[%emt 0:01:55]} h6 {[%emt 0:01:10]} 19. f4 {[%emt 0:00:22]} a5 $15 {[%emt 0:03:29]} 20. f5 {[%emt 0:03:03]} Qb5 {[%emt 0:03:09]} 21. Qg4 {[%emt 0:02:27]} exf5 {[%emt 0:03:43]} 22. Qxf5 {[%emt 0:01:13]} Qb7 {[%emt 0:01:27]} 23. e6 {[%emt 0:02:25]} f6 {[%emt 0:01:12]} 24. b3 {[%emt 0:02:27]} Qe7 {[%emt 0:00:48]} 25. Rbd1 {[%emt 0:01:27]} Re8 {[%emt 0:09:18]} 26. Rfe1 {[%emt 0:00:52]} Rad8 {[%emt 0:00:28]} 27. c4 {[%emt 0:04:17]} d4 {[%emt 0:01:35]} 28. c5 {[%emt 0:00:13]} Rd5 {[%emt 0:00:44]} 29. Qg4 {[%emt 0:01:17]} Qxc5 {[%emt 0:03:34]} 30. Qg6 {[%emt 0:02:30]} Re7 {[%emt 0:05:00]} 31. Qd3 {[%emt 0:05:41]} Re5 {[%emt 0:04:31]} 32. Rxe5 {[%emt 0:05:09]} fxe5 {[%emt 0:00:34]} 33. Qa6 {[%emt 0:00:27]} Qd5 {[%emt 0:01:20]} 34. Qc8+ {[%emt 0:03:36]} Kh7 {[%emt 0:00:24]} 35. Rf1 {[%emt 0:00:05]} Qxe6 {[%emt 0:01:21]} 36. Qa6 {[%emt 0:01:58]} Qd5 {[%emt 0:00:58]} 37. Qc8 {[%emt 0:00:45]} e4 {[%emt 0:01:03]} 38. Rf8 {[%emt 0:01:28]} Qe6 {[%emt 0:01:34]} 39. Qa6 {[%emt 0:03:45]} Rf7 {[%emt 0:00:35]} 40. Rxf7 {[%emt 0:02:00]} Qxf7 {[%emt 0:00:11]} 41. h3 {[%emt 0:30:24]} Qd5 {[%emt 0:30:19]} 42. Kh2 {[%emt 0:01:10]} d3 {[%emt 0:00:10]} 43. h4 {[%emt 0:01:31]} d2 {[%emt 0:00:19]} 44. h5 {[%emt 0:00:08]} d1=Q {[%emt 0:00:10]} 45. Qc8 {[%emt 0:00:21]} Qe5+ {[%emt 0:00:29]} 46. g3 {[%emt 0:00:27]} Qe2+ {[%emt 0:00:26]} 47. Kh1 {[%emt 0:00:16]} Qa1# {[%emt 0:00:10]} 0-1

[Event "Fagernes Open 2021"]
[Site "Fagernes"]
[Date "2021.10.17"]
[Round "9.12"]
[White "Eriksen, Olai Dyrhaug"]
[Black "Hellesoy, David"]
[Result "1-0"]
[ECO "E05"]
[WhiteElo "1809"]
[BlackElo "1500"]
[Annotator "NA"]
[PlyCount "103"]
[EventDate "2021.10.10"]
[EventCountry "NOR"]
[SourceTitle "playchess.com"]
[Source "ChessBase"]
[SourceQuality "1"]
[TimeControl "40/5400+30:1800+30"]

1. d4 {[%emt 0:00:00]} Nf6 {[%emt 0:20:47]} 2. c4 {[%emt 0:00:00]} e6 {[%emt 0:00:06]} 3. g3 {[%emt 0:00:00]} d5 {[%emt 0:00:07]} 4. Bg2 {[%emt 0:00:00]} Be7 {[%emt 0:00:49]} 5. Nf3 {[%emt 0:00:00]} O-O {[%emt 0:00:30]} 6. O-O {[%emt 0:00:00]} dxc4 {[%emt 0:00:17]} 7. Na3 {[%emt 0:00:00]} c5 {[%emt 0:04:44]} 8. dxc5 {[%emt 0:00:00]} Bxc5 {[%emt 0:02:26]} 9. Nxc4 {[%emt 0:00:00]} Nc6 {[%emt 0:02:06]} 10. a3 {[%emt 0:00:00]} a6 {[%emt 0:04:17]} 11. b4 {[%emt 0:00:30]} Ba7 $16 {[%emt 0:03:17]} 12. Bb2 {[%emt 0:07:27]} Qe7 {[%emt 0:07:00]} 13. Qb3 {[%emt 0:03:00]} b5 {[%emt 0:05:49]} 14. Nfe5 {[%emt 0:10:35]} Nxe5 {[%emt 0:06:05]} 15. Nxe5 {[%emt 0:02:18]} Bb7 {[%emt 0:01:08]} 16. Nc6 {[%emt 0:01:29]} Bxc6 {[%emt 0:00:28]} 17. Bxc6 {[%emt 0:00:11]} Rac8 {[%emt 0:01:22]} 18. Rac1 {[%emt 0:06:05]} Rfd8 {[%emt 0:07:16]} 19. Bf3 {[%emt 0:03:25]} Ne8 {[%emt 0:02:16]} 20. Rxc8 {[%emt 0:14:11]} Rxc8 {[%emt 0:00:56]} 21. Rd1 {[%emt 0:01:19]} Nd6 {[%emt 0:02:38]} 22. Qd3 {[%emt 0:04:40]} Nc4 {[%emt 0:06:09]} 23. Qd7 {[%emt 0:02:00]} Qxd7 {[%emt 0:01:29]} 24. Rxd7 {[%emt 0:00:07]} Bxf2+ {[%emt 0:00:40]} 25. Kxf2 {[%emt 0:00:06]} Nxb2 {[%emt 0:00:07]} 26. Ra7 {[%emt 0:09:03]} g6 {[%emt 0:00:59]} 27. Rxa6 {[%emt 0:00:26]} Nc4 {[%emt 0:03:57]} 28. g4 {[%emt 0:05:04]} g5 {[%emt 0:02:09]} 29. Be4 {[%emt 0:03:03]} h6 {[%emt 0:01:21]} 30. Bd3 {[%emt 0:01:12]} Kf8 {[%emt 0:02:13]} 31. Ra7 {[%emt 0:04:37]} Ke8 {[%emt 0:02:45]} 32. Kg3 {[%emt 0:03:51]} Nd6 {[%emt 0:00:35]} 33. h4 {[%emt 0:01:43]} Rc3 {[%emt 0:00:57]} 34. hxg5 {[%emt 0:09:29]} hxg5 {[%emt 0:00:15]} 35. Kf2 {[%emt 0:00:57]} Nc4 {[%emt 0:01:16]} 36. Bxc4 {[%emt 0:01:04]} Rxc4 {[%emt 0:00:50]} 37. Kf3 {[%emt 0:03:41]} f6 {[%emt 0:01:59]} 38. e3 {[%emt 0:00:38]} Rc6 {[%emt 0:01:32]} 39. Ke4 {[%emt 0:03:07]} Rd6 {[%emt 0:02:02]} 40. Rb7 {[%emt 0:02:28]} Rd5 {[%emt 0:00:24]} 41. Kf3 {[%emt 0:32:25]} Kd8 {[%emt 0:00:00]} 42. Rf7 {[%emt 0:00:00]} f5 {[%emt 0:00:00]} 43. Rg7 {[%emt 0:00:00]} fxg4+ {[%emt 0:01:43]} 44. Kxg4 {[%emt 0:00:00]} Re5 {[%emt 0:00:09]} 45. Kf3 {[%emt 0:00:00]} Ke8 {[%emt 0:02:34]} 46. e4 {[%emt 0:00:00]} Kf8 {[%emt 0:00:20]} 47. Rc7 {[%emt 0:00:00]} Ke8 {[%emt 0:02:37]} 48. Rh7 {[%emt 0:00:00]} Kf8 {[%emt 0:00:26]} 49. Ke3 {[%emt 0:00:00]} Kg8 {[%emt 0:00:18]} 50. Rh1 {[%emt 0:00:00]} Kg7 {[%emt 0:02:31]} 51. Kd4 {[%emt 0:00:00]} Kf6 {[%emt 0:00:29]} 52. Rf1+ {[%emt 0:00:57]} 1-0

[Event "Fagernes Open 2021"]
[Site "Fagernes"]
[Date "2021.10.17"]
[Round "9.13"]
[White "Stromhaug, Kristoffer Wang"]
[Black "Carlin, Tormod"]
[Result "0-1"]
[ECO "B38"]
[WhiteElo "1718"]
[BlackElo "1554"]
[Annotator "NA"]
[PlyCount "78"]
[EventDate "2021.10.10"]
[EventCountry "NOR"]
[SourceTitle "playchess.com"]
[Source "ChessBase"]
[SourceQuality "1"]
[TimeControl "40/5400+30:1800+30"]

1. e4 {[%emt 0:00:00]} c5 {[%emt 0:07:24]} 2. Nf3 {[%emt 0:00:00]} Nc6 {[%emt 0:00:39]} 3. d4 {[%emt 0:00:00]} cxd4 {[%emt 0:00:06]} 4. Nxd4 {[%emt 0:00:00]} Nf6 {[%emt 0:00:07]} 5. f3 {[%emt 0:00:00]} g6 {[%emt 0:00:45]} 6. Be3 {[%emt 0:00:00]} Bg7 {[%emt 0:00:13]} 7. Qd2 {[%emt 0:00:10]} O-O {[%emt 0:01:31]} 8. c4 {[%emt 0:13:18]} d6 {[%emt 0:02:47]} 9. Nc3 {[%emt 0:06:11]} a6 {[%emt 0:00:35]} 10. Be2 {[%emt 0:04:25]} Bd7 {[%emt 0:01:01]} 11. O-O {[%emt 0:00:29]} Qc7 {[%emt 0:09:04]} 12. Rac1 {[%emt 0:04:47]} Rac8 {[%emt 0:00:24]} 13. Nd5 {[%emt 0:02:02]} Qd8 {[%emt 0:07:36]} 14. Nb3 {[%emt 0:17:38]} Nxd5 {[%emt 0:09:50]} 15. cxd5 {[%emt 0:00:16]} Ne5 {[%emt 0:00:18]} 16. Qb4 {[%emt 0:05:09]} Rxc1 {[%emt 0:02:31]} 17. Rxc1 {[%emt 0:00:25]} Qb8 {[%emt 0:00:47]} 18. Na5 {[%emt 0:08:10]} b5 {[%emt 0:07:18]} 19. f4 {[%emt 0:07:30]} Ng4 {[%emt 0:08:05]} 20. Bxg4 {[%emt 0:00:54]} Bxg4 {[%emt 0:00:13]} 21. Nc6 {[%emt 0:00:36]} Qb7 {[%emt 0:00:16]} 22. a4 {[%emt 0:05:29]} Re8 {[%emt 0:04:02]} 23. Na5 {[%emt 0:05:30]} Qb8 {[%emt 0:02:16]} 24. Rc6 {[%emt 0:03:39]} bxa4 {[%emt 0:00:45]} 25. Rb6 {[%emt 0:00:47]} Qc7 {[%emt 0:03:06]} 26. Nc6 {[%emt 0:01:13]} Bc8 {[%emt 0:01:10]} 27. Qxa4 {[%emt 0:05:46]} Kf8 {[%emt 0:00:23]} 28. e5 {[%emt 0:05:37]} e6 {[%emt 0:02:56]} 29. exd6 {[%emt 0:00:42]} Qxd6 {[%emt 0:00:14]} 30. Nb4 {[%emt 0:00:57]} Qd8 {[%emt 0:05:07]} 31. Bc5+ {[%emt 0:01:06]} Kg8 {[%emt 0:00:06]} 32. d6 {[%emt 0:01:21]} Bd7 {[%emt 0:00:57]} 33. Nc6 {[%emt 0:01:46]} Qc8 {[%emt 0:00:58]} 34. Qe4 {[%emt 0:00:48]} Bxb2 {[%emt 0:00:30]} 35. Bb4 {[%emt 0:00:44]} Bf6 {[%emt 0:02:47]} 36. Qc4 {[%emt 0:00:31]} a5 {[%emt 0:03:02]} 37. Bxa5 {[%emt 0:00:29]} Qa8 {[%emt 0:00:51]} 38. Qb5 {[%emt 0:00:32]} Bd4+ {[%emt 0:01:56]} 39. Kf1 {[%emt 0:00:27]} Bxb6 {[%emt 0:00:15]} 0-1